bitfinex-derivatives/quotes_SOLF0:USTF0_20250527
["timestamp","ask_amount","ask_price","bid_price","bid_amount"]
[1748348467425,32.0205,176.91,176.82,0.04318585]
[1748348468025,33.8983,176.96,176.83,30.0]
[1748348468225,33.8983,176.96,176.88,5.69009417]
[1748348468430,5.6503,176.92,176.88,5.69009417]
[1748348468632,33.8983,176.96,176.88,0.03879417]
[1748348469517,5.6506,176.91,176.88,0.03879417]
[1748348469829,33.8983,176.96,176.88,0.03879417]
[1748348470327,5.6512,176.89,176.88,0.03879417]
[1748348471530,5.651,176.9,176.88,0.03879417]
[1748348471729,33.8983,176.96,176.88,0.03879417]
[1748348472827,5.6512,176.9,176.88,0.03879417]
[1748348473229,33.8983,176.96,176.88,0.03879417]
[1748348473932,5.6496,176.94,176.88,0.03879417]
[1748348474129,31.8831,176.96,176.88,0.03879417]
[1748348476328,5.65,176.93,176.88,0.03879417]
[1748348476931,5.65,176.93,176.89,7.84]
[1748348477234,31.8831,176.96,176.89,7.84]
[1748348479130,5.6506,176.9,176.89,7.84]
[1748348479828,5.6509,176.89,176.88,0.03879417]
[1748348480039,5.6509,176.89,176.82,30.0]
[1748348480040,30.0,176.92,176.82,30.0]
[1748348480339,5.02826654,176.91,176.77,30.0]
[1748348480533,5.02826654,176.88,176.77,30.0]
[1748348480737,30.0,176.87,176.77,30.0]
[1748348480934,5.6535,176.82,176.77,30.0]
[1748348481138,0.03879417,176.81,176.78,0.03875124]
[1748348481332,0.03879417,176.81,176.78,5.69315124]
[1748348481638,0.03879417,176.81,176.78,0.03875124]
[1748348481838,0.03879417,176.81,176.8,5.6538]
[1748348484140,0.03879417,176.81,176.78,0.03875124]
[1748348486341,0.03879417,176.81,176.78,5.69295124]
[1748348486643,0.03879417,176.81,176.78,0.03875124]
[1748348487038,0.03879417,176.81,176.8,5.6538]
[1748348487644,0.03879417,176.81,176.78,0.03875124]
[1748348488241,0.03879417,176.81,176.79,5.6539]
[1748348488945,0.03879417,176.81,176.78,0.03875124]
[1748348489547,0.03879417,176.81,176.78,5.69315124]
[1748348489846,0.03879417,176.81,176.78,0.03875124]
[1748348490042,0.03879417,176.81,176.78,5.69315124]
[1748348490248,0.03879417,176.81,176.78,0.03875124]
[1748348490840,0.03879417,176.81,176.8,5.6538]
[1748348492448,0.03879417,176.81,176.79,5.6541]
[1748348494453,0.03879417,176.81,176.78,5.69305124]
[1748348494951,5.69249417,176.81,176.78,5.69305124]
[1748348495155,0.03879417,176.81,176.78,0.03875124]
[1748348496157,0.03879417,176.81,176.79,5.6541]
[1748348497456,5.69229417,176.81,176.78,5.69295124]
[1748348497642,0.03879417,176.81,176.78,0.03875124]
[1748348501051,0.03879417,176.81,176.78,5.69305124]
[1748348501253,0.03879417,176.81,176.78,0.03875124]
[1748348501449,5.6541,176.8,176.78,0.03875124]
[1748348503354,5.6541,176.79,176.78,0.03875124]
[1748348505258,0.03879417,176.81,176.78,5.69305124]
[1748348505548,0.03879417,176.81,176.78,0.03875124]
[1748348505951,0.03879417,176.81,176.78,5.69305124]
[1748348506357,5.69239417,176.81,176.78,5.69305124]
[1748348506558,5.69239417,176.81,176.78,0.03875124]
[1748348507749,0.03879417,176.81,176.78,0.03875124]
[1748348508360,30.46,176.8,176.78,0.03875124]
[1748348508762,5.6541,176.79,176.78,0.03875124]
[1748348510265,0.03879417,176.81,176.78,0.03875124]
[1748348510452,30.49879417,176.81,176.78,0.03875124]
[1748348511258,36.15249417,176.81,176.78,5.69305124]
[1748348511960,30.49879417,176.81,176.78,0.03875124]
[1748348513662,5.6541,176.79,176.78,0.03875124]
[1748348520160,5.6539,176.8,176.78,0.03875124]
[1748348520361,30.49879417,176.81,176.78,0.03875124]
[1748348520864,5.654,176.8,176.78,0.03875124]
[1748348521063,30.49879417,176.81,176.78,0.03875124]
[1748348521555,5.6541,176.79,176.78,0.03875124]
[1748348539474,5.6541,176.79,176.78,5.124e-05]
[1748348541876,5.6554,176.75,176.74,0.34482025]
[1748348542080,35.6754,176.75,176.74,0.34482025]
[1748348545672,35.6754,176.75,176.74,2.025e-05]
[1748348545876,5.6557,176.74,176.73,0.04306759]
[1748348547384,5.6579,176.68,176.64,10.02404784]
[1748348548382,5.69851834,176.68,176.64,9.59967118]
[1748348548782,0.04061834,176.68,176.65,5.6586]
[1748348549182,0.04061834,176.68,176.64,3.94087118]
[1748348549480,0.04061834,176.68,176.67,5.658]
[1748348549985,0.04061834,176.68,176.66,5.6582]
[1748348551279,5.69831834,176.68,176.65,5.6586]
[1748348552186,5.69831834,176.68,176.64,9.59967118]
[1748348552486,5.6581,176.67,176.64,9.59967118]
[1748348554184,0.04061834,176.68,176.64,3.94087118]
[1748348554687,5.6586,176.65,176.64,0.04187118]
[1748348555081,5.6581,176.67,176.64,0.04187118]
[1748348555387,0.04061834,176.68,176.64,0.04187118]
[1748348556190,5.6581,176.67,176.64,0.04187118]
[1748348556891,5.6583,176.66,176.64,0.04187118]
[1748348557884,0.04061834,176.68,176.64,0.04187118]
[1748348558284,5.69851834,176.68,176.65,5.6586]
[1748348558990,5.658,176.67,176.65,5.6586]
[1748348559291,0.04061834,176.68,176.65,5.6586]
[1748348559790,0.04061834,176.68,176.64,0.04187118]
[1748348560487,5.6582,176.67,176.64,5.70077118]
[1748348560890,0.04061834,176.68,176.64,5.70077118]
[1748348561095,5.69841834,176.68,176.64,5.70077118]
[1748348561388,0.04061834,176.68,176.64,0.04187118]
[1748348561691,5.69831834,176.68,176.65,5.6584]
[1748348561890,0.04061834,176.68,176.64,0.04187118]
[1748348562395,5.6582,176.67,176.64,5.70067118]
[1748348562985,5.6584,176.66,176.64,0.04187118]
[1748348563590,5.6586,176.65,176.64,0.04187118]
[1748348565801,5.6584,176.66,176.64,0.04187118]
[1748348566001,0.04061834,176.68,176.64,0.04187118]
[1748348567511,5.6581,176.67,176.64,0.04187118]
[1748348567694,0.04061834,176.68,176.64,0.04187118]
[1748348569790,5.69841834,176.68,176.64,5.70077118]
[1748348569995,0.04061834,176.68,176.64,5.70077118]
[1748348570393,5.6582,176.67,176.64,0.04187118]
[1748348570797,0.04061834,176.68,176.64,0.04187118]
[1748348570999,5.6581,176.67,176.64,0.04187118]
[1748348571507,0.04061834,176.68,176.64,0.04187118]
[1748348572605,0.04061834,176.68,176.66,5.6581]
[1748348572799,5.69831834,176.68,176.66,5.6581]
[1748348573006,0.04061834,176.68,176.66,5.6581]
[1748348573799,0.04061834,176.68,176.67,5.658]
[1748348575207,5.69851834,176.68,176.66,5.6582]
[1748348576911,5.658,176.67,176.65,9.6017]
[1748348577509,5.69841834,176.68,176.65,9.6017]
[1748348578818,5.69841834,176.68,176.66,5.6583]
[1748348579714,5.69841834,176.68,176.65,9.6017]
[1748348580021,0.04061834,176.68,176.65,3.9432]
[1748348580218,0.04061834,176.68,176.66,5.6581]
[1748348580625,5.69841834,176.68,176.66,5.6581]
[1748348581215,0.04061834,176.68,176.66,5.6581]
[1748348582125,5.69831834,176.68,176.66,5.6581]
[1748348582324,5.69831834,176.68,176.65,3.9432]
[1748348582916,5.69831834,176.68,176.65,9.6018]
[1748348583426,5.658,176.67,176.65,9.6018]
[1748348584731,5.6583,176.66,176.65,3.9432]
[1748348585726,5.6586,176.65,176.64,0.04187118]
[1748348593837,0.04061834,176.68,176.64,0.04187118]
[1748348594440,5.6582,176.67,176.64,0.04187118]
[1748348596141,0.04061834,176.68,176.64,0.04187118]
[1748348596637,5.69851834,176.68,176.65,5.6584]
[1748348596945,0.04061834,176.68,176.64,0.04187118]
[1748348597138,5.6586,176.65,176.64,0.04187118]
[1748348599337,29.98,176.66,176.64,0.04187118]
[1748348605149,35.6384,176.66,176.64,0.04187118]
[1748348605345,29.98,176.66,176.64,0.04187118]
[1748348605849,5.6586,176.65,176.64,0.04187118]
[1748348610149,35.6384,176.66,176.64,0.04187118]
[1748348610450,29.98,176.66,176.64,0.04187118]
[1748348610950,35.6384,176.66,176.64,0.04187118]
[1748348611251,29.98,176.66,176.64,0.04187118]
[1748348611441,35.6384,176.66,176.64,0.04187118]
[1748348612244,35.6384,176.66,176.64,5.70077118]
[1748348612451,29.98,176.66,176.64,5.70077118]
[1748348612851,29.98,176.66,176.65,5.6586]
[1748348613753,5.69831834,176.68,176.66,5.658]
[1748348613754,0.04061834,176.68,176.66,5.658]
[1748348614350,5.69831834,176.68,176.66,5.658]
[1748348615753,0.04061834,176.68,176.67,5.658]
[1748348615952,0.04061834,176.68,176.64,0.04187118]
[1748348616350,5.69851834,176.68,176.65,5.6584]
[1748348617153,5.69851834,176.68,176.66,5.6583]
[1748348617652,5.69851834,176.68,176.65,5.6585]
[1748348618057,0.04061834,176.68,176.64,0.39277615]
[1748348618358,0.04061834,176.68,176.66,5.6581]
[1748348619258,0.04061834,176.68,176.64,0.39277615]
[1748348619459,3.20775631,176.67,176.64,0.39277615]
[1748348619647,0.04061834,176.68,176.64,0.04187118]
[1748348619648,5.6586,176.65,176.64,0.04187118]
[1748348627256,35.5985,176.66,176.64,0.04187118]
[1748348627461,5.6585,176.66,176.64,0.04187118]
[1748348628956,29.94,176.67,176.64,0.04187118]
[1748348628957,5.6586,176.65,176.64,0.04187118]
[1748348638154,29.94,176.67,176.64,0.04187118]
[1748348639469,5.6585,176.66,176.64,0.04187118]
[1748348640062,35.5981,176.67,176.64,5.70077118]
[1748348640662,5.6585,176.66,176.64,0.04187118]
[1748348641169,5.6585,176.66,176.64,5.70077118]
[1748348642371,5.6585,176.66,176.64,0.04187118]
[1748348642669,35.5981,176.67,176.64,0.04187118]
[1748348642866,35.5981,176.67,176.64,5.70057118]
[1748348643177,29.94,176.67,176.64,0.04187118]
[1748348643664,5.6584,176.66,176.64,0.04187118]
[1748348645972,5.6586,176.65,176.64,0.04187118]
[1748348647985,0.04061834,176.68,176.64,0.04187118]
[1748348648166,0.04061834,176.68,176.67,5.658]
[1748348648465,5.6563,176.73,176.65,118.8559]
[1748348648665,5.6563,176.73,176.69,5.6573]
[1748348648859,29.92,176.76,176.67,0.35080927]
[1748348649471,0.03716325,176.73,176.69,0.04073742]
[1748348652858,5.6565,176.72,176.69,0.04073742]
[1748348654171,5.6567,176.71,176.69,0.04073742]
[1748348655965,0.03716325,176.73,176.69,0.04073742]
[1748348656565,0.03716325,176.73,176.69,5.69803742]
[1748348656566,5.69326325,176.73,176.69,5.69803742]
[1748348657068,0.03716325,176.73,176.69,0.04073742]
[1748348657763,0.03716325,176.73,176.72,5.6564]
[1748348657962,0.03716325,176.73,176.69,0.04073742]
[1748348658160,0.03716325,176.73,176.71,5.6565]
[1748348659072,0.03716325,176.73,176.7,5.657]
[1748348659276,0.03716325,176.73,176.69,0.04073742]
[1748348659666,0.03716325,176.73,176.7,5.6568]
[1748348660160,5.69356325,176.73,176.69,5.69803742]
[1748348660564,0.03716325,176.73,176.69,0.04073742]
[1748348661167,5.6569,176.71,176.69,0.04073742]
[1748348663581,5.6565,176.72,176.69,5.69803742]
[1748348664072,0.03716325,176.73,176.69,0.04073742]
[1748348664979,5.6565,176.72,176.69,0.04073742]
[1748348665176,0.03716325,176.73,176.69,0.04073742]
[1748348666076,0.03716325,176.73,176.7,5.6568]
[1748348666077,5.69346325,176.73,176.7,5.6568]
[1748348666576,5.6564,176.72,176.69,5.69793742]
[1748348667574,5.657,176.7,176.69,0.04073742]
[1748348680179,5.6593,176.63,176.62,0.3520104]
[1748348680482,5.6593,176.63,176.6,41.7839104]
[1748348680680,5.6593,176.63,176.61,0.3520104]
[1748348681281,5.6593,176.63,176.6,41.82651707]
[1748348681478,0.03634653,176.64,176.6,36.16661707]
[1748348681688,5.69554653,176.64,176.61,5.6599]
[1748348681886,0.03634653,176.64,176.6,35.81460667]
[1748348682084,0.03634653,176.64,176.6,36.16698708]
[1748348682786,5.6595,176.63,176.6,41.82718708]
[1748348683174,5.6595,176.63,176.6,36.16698708]
[1748348683380,5.6595,176.63,176.6,41.82708708]
[1748348684278,5.6595,176.63,176.61,5.6598]
[1748348684475,5.69534653,176.64,176.6,36.16698708]
[1748348684886,5.69534653,176.64,176.61,5.6597]
[1748348687088,5.6593,176.63,176.61,5.6597]
[1748348687485,5.6593,176.63,176.6,41.82728215]
[1748348689284,5.6593,176.63,176.61,5.6599]
[1748348689487,5.69534653,176.64,176.61,5.6599]
[1748348690186,0.03634653,176.64,176.6,41.82740605]
[1748348690582,5.6598,176.62,176.6,41.82750605]
[1748348690787,0.03634653,176.64,176.6,11.90750605]
[1748348690992,0.03634653,176.64,176.6,5.89460667]
[1748348691893,5.6593,176.63,176.6,5.89460667]
[1748348692095,5.6593,176.63,176.6,6.24730605]
[1748348692293,0.03634653,176.64,176.6,6.24730605]
[1748348692492,0.03634653,176.64,176.63,5.6593]
[1748348694392,0.03634653,176.64,176.62,5.6595]
[1748348694584,0.03634653,176.64,176.6,6.24741479]
[1748348695396,0.03634653,176.64,176.63,5.6593]
[1748348703204,0.03634653,176.64,176.63,6.01156374]
[1748348704002,7.02410957,176.8,176.63,35.99226374]
[1748348704202,37.00410957,176.8,176.66,5.0147042]
[1748348704407,29.98,176.8,176.67,147.7318]
[1748348704596,29.98,176.8,176.71,5.6566]
[1748348704900,5.6558,176.74,176.69,0.70436422]
[1748348705098,29.98,176.8,176.69,0.70436422]
[1748348705305,0.03662071,176.73,176.7,0.04012206]
[1748348705507,0.03671814,176.73,176.7,0.04012206]
[1748348706711,0.03671814,176.73,176.72,5.6564]
[1748348713315,0.03671814,176.73,176.7,0.04012206]
[1748348713612,0.03671814,176.73,176.72,5.6564]
[1748348726626,7.01219643,176.91,176.75,16.98]
[1748348726833,10.51829465,176.93,176.84,5.00143646]
[1748348727130,10.51829465,176.93,176.85,150.2477]
[1748348727721,0.03847921,176.91,176.9,5.6506]
[1748348727927,0.03802214,176.92,176.89,0.0411894]
[1748348728232,0.04313397,176.92,176.9,30.8]
[1748348728626,0.04313397,176.92,176.9,36.4506]
[1748348729224,0.04313397,176.92,176.91,5.6503]
[1748348729424,30.8,177.01,176.9,30.8]
[1748348729835,5.6482,176.98,176.92,5.6499]
[1748348730428,5.6482,176.98,176.93,0.03585832]
[1748348730631,5.6485,176.97,176.93,0.03585832]
[1748348731931,5.6489,176.96,176.93,0.03585832]
[1748348732937,30.8,177.01,176.93,0.03585832]
[1748348733632,5.6491,176.95,176.93,0.03585832]
[1748348734936,5.6488,176.96,176.93,0.03585832]
[1748348735133,30.8,177.01,176.93,0.03585832]
[1748348735738,5.6494,176.94,176.93,0.03585832]
[1748348736035,5.6494,176.94,176.93,30.59585832]
[1748348736839,5.6494,176.94,176.93,0.03585832]
[1748348737538,37.53478809,177.15,176.93,27.66794314]
[1748348737840,37.53478809,177.15,177.02,0.04020684]
[1748348738038,37.53478809,177.15,177.07,0.04341763]
[1748348738437,5.6449,177.08,177.07,0.04341763]
[1748348750347,30.54,177.1,176.98,30.52]
[1748348750549,30.54,177.1,177.0,5.6472]
[1748348750852,5.6465,177.04,177.0,5.6472]
[1748348751055,30.54,177.1,176.98,30.52]
[1748348751249,0.03709155,177.06,177.02,0.03865207]
[1748348751642,5.6464,177.04,177.02,0.03865207]
[1748348752156,0.03709155,177.06,177.02,0.03865207]
[1748348752855,5.6459,177.05,177.02,0.03865207]
[1748348753056,0.03709155,177.06,177.02,0.03865207]
[1748348753552,5.6464,177.04,177.02,0.03865207]
[1748348754256,5.6465,177.03,177.02,0.03865207]
[1748348754447,0.03709155,177.06,177.02,0.03865207]
[1748348755555,5.6465,177.04,177.02,0.03865207]
[1748348758656,5.646,177.05,177.02,0.03865207]
[1748348759049,0.03709155,177.06,177.02,0.03865207]
[1748348760353,0.03709155,177.06,177.03,5.6463]
[1748348760554,0.03709155,177.06,177.02,0.03865207]
[1748348763447,487.94,177.25,177.03,35.51208482]
[1748348763660,7.03578482,177.21,177.04,114.24]
[1748348763856,7.03578482,177.21,177.07,5.645]
[1748348764053,5.6442,177.11,177.07,5.645]
[1748348764357,30.52,177.17,177.04,114.24]
[1748348764556,30.52,177.17,177.09,0.03820558]
[1748348765257,5.644,177.11,177.09,0.03820558]
[1748348765961,30.52,177.17,177.09,0.03820558]
[1748348766660,5.6441,177.11,177.09,0.03820558]
[1748348767254,5.6443,177.1,177.09,0.03820558]
[1748348767558,30.52,177.17,177.09,0.03820558]
[1748348767760,5.644,177.11,177.09,0.03820558]
[1748348768453,5.6443,177.1,177.09,0.03820558]
[1748348768853,30.52,177.17,177.09,0.03820558]
[1748348769658,5.6436,177.13,177.09,5.68260558]
[1748348770050,30.52,177.17,177.09,5.68260558]
[1748348771259,5.6436,177.13,177.09,5.68260558]
[1748348771758,5.6436,177.13,177.1,5.6442]
[1748348771957,30.52,177.17,177.09,0.03820558]
[1748348771958,5.6436,177.12,177.09,0.03820558]
[1748348772161,30.52,177.17,177.1,5.6442]
[1748348772662,5.6435,177.13,177.09,0.03820558]
[1748348772965,5.6435,177.13,177.09,5.68270558]
[1748348773368,30.52,177.17,177.09,0.03820558]
[1748348773963,5.6438,177.12,177.09,0.03820558]
[1748348774163,30.52,177.17,177.09,0.03820558]
[1748348774463,5.6439,177.12,177.09,0.03820558]
[1748348775665,30.52,177.17,177.09,0.03820558]
[1748348776059,5.6442,177.11,177.09,0.03820558]
[1748348778168,5.6438,177.12,177.09,5.68270558]
[1748348778967,30.52,177.17,177.09,5.68270558]
[1748348779461,5.6438,177.12,177.09,5.68270558]
[1748348779658,30.52,177.17,177.09,0.03820558]
[1748348780058,5.6441,177.11,177.09,0.03820558]
[1748348782964,30.52,177.17,177.09,0.03820558]
[1748348783469,5.6443,177.1,177.09,0.03820558]
[1748348784267,5.6458,177.05,177.04,0.34955366]
[1748348784460,5.6458,177.05,177.01,7.6595]
[1748348784461,5.6458,177.05,177.01,8.00905366]
[1748348784666,5.6458,177.05,177.01,7.6595]
[1748348784866,31.08,177.12,177.0,0.34955366]
[1748348784867,31.08,177.06,177.0,0.34955366]
[1748348785167,31.12139911,177.05,177.01,0.04202254]
[1748348785364,5.6468,177.02,177.01,0.04202254]
[1748348787369,0.04139911,177.05,177.01,0.04202254]
[1748348788064,0.04139911,177.05,177.01,5.68892254]
[1748348788268,0.04139911,177.05,177.01,0.04202254]
[1748348788669,0.04139911,177.05,177.02,5.6466]
[1748348788867,0.04139911,177.05,177.01,0.04202254]
[1748348789868,0.04139911,177.05,177.04,5.6462]
[1748348790369,0.04139911,177.05,177.01,0.04202254]
[1748348790670,0.04139911,177.05,177.02,5.6465]
[1748348791272,5.68729911,177.05,177.01,5.68902254]
[1748348791674,5.68729911,177.05,177.01,0.04202254]
[1748348792573,5.68729911,177.05,177.02,5.6468]
[1748348792968,5.6462,177.04,177.01,0.04202254]
[1748348793577,5.6462,177.04,177.01,5.68892254]
[1748348794175,5.68739911,177.05,177.01,5.68892254]
[1748348794878,5.6462,177.04,177.01,0.04202254]
[1748348795369,5.68729911,177.05,177.01,5.68892254]
[1748348796380,0.04139911,177.05,177.02,5.6466]
[1748348797177,0.04139911,177.05,177.01,0.04202254]
[1748348798275,0.04139911,177.05,177.03,5.6465]
[1748348799282,0.04139911,177.05,177.04,5.6462]
[1748348801880,0.04139911,177.05,177.03,5.6464]
[1748348802072,0.04139911,177.05,177.01,0.04202254]
[1748348802581,0.04139911,177.05,177.03,5.6464]
[1748348802980,0.04139911,177.05,177.04,5.6462]
[1748348803284,0.04139911,177.05,177.01,0.04202254]
[1748348804088,0.04139911,177.05,177.03,5.6463]
[1748348805680,0.04139911,177.05,177.04,5.6462]
[1748348811886,0.04139911,177.05,177.04,5.99696437]
[1748348814286,9.911e-05,177.05,177.04,5.99696437]
[1748348814791,9.911e-05,177.05,177.04,5.6462]
[1748348816398,9.911e-05,177.05,177.04,5.99683767]
[1748348817194,9.911e-05,177.05,177.04,5.6462]
[1748348817497,9.911e-05,177.05,177.04,5.99683767]
[1748348818096,9.911e-05,177.05,177.04,5.6462]
[1748348819099,9.911e-05,177.05,177.04,5.99704318]
[1748348819396,9.911e-05,177.05,177.04,5.6462]
[1748348819598,9.911e-05,177.05,177.04,5.99706163]
[1748348819900,9.911e-05,177.05,177.04,5.6462]
[1748348820099,9.911e-05,177.05,177.04,5.9970456]
[1748348822305,9.911e-05,177.05,177.04,5.6462]
[1748348828201,9.911e-05,177.05,177.04,5.99753086]
[1748348828499,9.911e-05,177.05,177.04,5.6462]
[1748348836008,9.911e-05,177.05,177.04,35.6462]
[1748348836907,9.911e-05,177.05,177.04,36.10756788]
[1748348839314,9.911e-05,177.05,177.04,35.6462]
[1748348839704,9.911e-05,177.05,177.04,37.6353]
[1748348840904,9.911e-05,177.05,177.04,39.5641]
[1748348842008,29.98,177.16,177.04,39.5641]
[1748348842207,29.98,177.16,177.09,0.35177256]
[1748348842411,35.6226,177.16,177.07,0.46996925]
[1748348843014,5.6427,177.15,177.12,5.6434]
[1748348843209,5.6427,177.15,177.1,0.03765579]
[1748348843415,29.98,177.16,177.14,5.6427]
[1748348844413,29.98,177.16,177.1,0.38942462]
[1748348844808,29.98,177.16,177.11,0.35176883]
[1748348845214,29.98,177.16,177.1,0.38942462]
[1748348846215,29.98,177.16,177.1,0.38917966]
[1748348847313,4.0666,177.19,177.15,5.6426]
[1748348847521,29.98,177.18,177.15,5.67976117]
[1748348847815,35.6219,177.18,177.15,5.67976117]
[1748348848821,35.6219,177.18,177.15,0.03716117]
[1748348849124,5.642,177.17,177.15,0.03716117]
[1748348849314,487.82,177.21,177.15,0.03716117]
[1748348849515,5.6419,177.18,177.15,0.03716117]
[1748348850620,5.6419,177.18,177.15,5.67976117]
[1748348850815,7.6282,177.19,177.15,0.03716117]
[1748348851015,7.6282,177.19,177.15,5.67966117]
[1748348851225,1.9867,177.19,177.15,5.67966117]
[1748348851422,1.9867,177.19,177.15,0.03716117]
[1748348851923,5.6419,177.18,177.15,0.03716117]
[1748348852122,5.6419,177.18,177.15,5.67956117]
[1748348852719,1.9867,177.19,177.15,0.03716117]
[1748348853625,5.6417,177.18,177.15,0.03716117]
[1748348854326,5.6417,177.18,177.15,5.67976117]
[1748348854827,7.6282,177.19,177.15,5.67976117]
[1748348855025,7.6282,177.19,177.16,5.642]
[1748348855223,7.6282,177.19,177.15,0.03716117]
[1748348855529,7.6282,177.19,177.15,5.67966117]
[1748348856028,8.8328735,177.18,177.15,5.67966117]
[1748348856927,3.1911735,177.16,177.15,0.03716117]
[1748348857728,8.8334735,177.16,177.15,0.03716117]
[1748348858324,38.8134735,177.16,177.15,0.03716117]
[1748348858724,5.6433,177.13,177.1,5.644]
[1748348859831,5.68105735,177.13,177.1,5.68171563]
[1748348860029,0.03775735,177.13,177.1,5.68171563]
[1748348860334,0.03775735,177.13,177.11,5.6438]
[1748348860735,0.03775735,177.13,177.1,0.03771563]
[1748348861435,0.03775735,177.13,177.12,5.6436]
[1748348861927,0.03775735,177.13,177.1,5.68181563]
[1748348862228,0.03775735,177.13,177.1,0.03771563]
[1748348862532,0.03775735,177.13,177.11,5.6437]
[1748348864030,0.03775735,177.13,177.1,0.03771563]
[1748348864031,0.03775735,177.13,177.1,5.68181563]
[1748348864232,0.03775735,177.13,177.1,0.03771563]
[1748348865432,0.03775735,177.13,177.11,5.6437]
[1748348866629,0.03775735,177.13,177.1,5.68181563]
[1748348867333,5.68125735,177.13,177.1,5.68181563]
[1748348868533,0.03775735,177.13,177.1,5.68181563]
[1748348869732,0.03775735,177.13,177.1,0.03771563]
[1748348870331,5.6436,177.12,177.1,0.03771563]
[1748348871436,29.98,177.12,177.07,0.35120593]
[1748348871640,31.9585,177.12,177.05,0.35120593]
[1748348871939,5.6447,177.09,177.06,5.6453]
[1748348872239,5.68673549,177.09,177.06,5.68153388]
[1748348874531,0.04203549,177.09,177.06,0.03623388]
[1748348874727,29.98,177.08,177.06,0.03623388]
[1748348875335,5.6452,177.07,177.06,0.03623388]
[1748348878634,35.6249,177.08,177.06,0.03623388]
[1748348879735,5.6452,177.07,177.06,0.03623388]
[1748348879936,29.98,177.08,177.06,0.03623388]
[1748348880338,35.6251,177.08,177.06,0.03623388]
[1748348881027,29.98,177.07,177.06,5.68143388]
[1748348881232,29.98,177.07,177.06,0.03623388]
[1748348882235,29.98,177.07,177.06,5.68173388]
[1748348882931,0.04203549,177.09,177.06,0.03623388]
[1748348883441,0.04203549,177.09,177.08,5.6449]
[1748348884941,29.98,177.19,177.07,0.35065178]
[1748348885236,29.98,177.19,177.08,0.35028931]
[1748348885744,29.98,177.19,177.14,5.6429]
[1748348886038,29.98,177.19,177.15,0.04294492]
[1748348886039,0.03969257,177.18,177.15,0.04294492]
[1748348886439,5.68169257,177.18,177.15,0.04294492]
[1748348886837,29.98,177.17,177.15,0.04294492]
[1748348888042,29.98,177.17,177.15,5.68554492]
[1748348889041,0.03969257,177.18,177.17,5.642]
[1748348890139,0.03969257,177.18,177.16,5.6422]
[1748348890340,0.03969257,177.18,177.15,0.04294492]
[1748348890843,5.6396,177.25,177.15,0.04294492]
[1748348891037,29.96,177.26,177.15,0.35004267]
[1748348891240,29.96,177.26,177.14,1.9928]
[1748348891241,29.96,177.26,177.14,2.34284267]
[1748348891834,29.96,177.26,177.18,0.04261766]
[1748348892136,5.6413,177.2,177.18,0.04261766]
[1748348892336,35.6013,177.2,177.18,0.04261766]
[1748348892536,29.96,177.2,177.18,0.04261766]
[1748348892940,5.6413,177.19,177.18,0.04261766]
[1748348893141,29.96,177.24,177.18,0.04261766]
[1748348893441,5.641,177.21,177.18,0.04261766]
[1748348894547,29.96,177.2,177.18,0.04261766]
[1748348895053,5.6423,177.17,177.13,7.5774]
[1748348895242,11.2775,177.28,177.13,1.9342]
[1748348895544,4.9882231,177.24,177.13,1.9342]
[1748348895749,5.6414,177.19,177.15,5.6426]
[1748348895944,29.94,177.18,177.15,5.68182612]
[1748348896247,29.94,177.18,177.15,0.03922612]
[1748348896644,35.5817,177.18,177.15,0.03922612]
[1748348896849,29.94,177.18,177.15,0.03922612]
[1748348897149,35.5818,177.18,177.15,0.03922612]
[1748348897546,29.94,177.18,177.15,0.03922612]
[1748348897749,29.94,177.18,177.15,5.68162612]
[1748348898450,35.5817,177.18,177.15,0.03922612]
[1748348898640,29.94,177.18,177.15,0.03922612]
[1748348899042,29.94,177.18,177.15,5.68162612]
[1748348899246,29.94,177.18,177.15,0.03922612]
[1748348899543,0.03588083,177.19,177.15,0.03922612]
[1748348900150,0.03588083,177.19,177.18,5.6417]
[1748348901851,29.94,177.28,177.16,2.30547179]
[1748348902049,29.94,177.28,177.17,112.08]
[1748348902447,29.94,177.28,177.25,5.6394]
[1748348902649,29.94,177.28,177.17,112.08]
[1748348902851,35.5786,177.28,177.21,0.04300489]
[1748348903147,34.9282231,177.28,177.21,0.04300489]
[1748348903748,5.6404,177.22,177.21,0.04300489]
[1748348904046,1.6537,177.29,177.13,1.9342]
[1748348904352,34.9282231,177.28,177.13,1.9342]